{"text_format":"1","workbook":"xlsx","n_sheets":1,"sheets":["CATALOGO FOIS202402"],"not_rendered":{"charts":0,"images":3,"macros":1,"external_links":28,"defined_names":558,"comments":0,"pivot_tables":0},"unopened":[],"bounds":{"document_bytes":16777216,"sheet_cells":100000,"rows_first":2000,"rows_last":500,"rows_between":2000,"halvings":0,"cell_chars":16384,"cell_head_chars":4096},"cells_cut":0,"cells_raw":0,"read":"whole","date_system":"1900"}

{"sheet":"CATALOGO FOIS202402","index":0,"n_rows":131,"n_cols":7,"rows_kept":131,"cut":false,"hidden":false,"merged":[[15,0,15,6],[16,0,16,6],[17,0,17,6],[19,0,19,6],[24,0,24,6],[22,0,22,6]]}
[null,null,null,"ANCHO",10.3,10.3]
[null,null,null,"LARGO",1025,1025,{"$f":"E1*E2","v":10557.5}]
[null,null,null,"AREA TOTAL",{"$f":"+E4+E5+E6","v":12858.98},{"$f":"+F4+F5+F6","v":2301.48}]
[null,null,null,"CARPETA ASFALTICA 6CM",{"$f":"G2-(10.3*80.5)-(10.3*91.8)","v":8782.81},{"$f":"H2-(10.3*80.5)-(10.3*91.8)","v":-1774.69}]
[null,null,null,"CONCRETO HIDRAULICO 20 CM",{"$f":"(21.1*80.5)","v":1698.5500000000002},{"$f":"(21.1*80.5)","v":1698.5500000000002},"(VADO 2)"]
[null,null,null,"CONCRETO HIDRAULICO 20 CM",{"$f":"(25.9*91.8)","v":2377.62},{"$f":"(25.9*91.8)","v":2377.62},"(VADO 3)"]
[]
[null,null,null,"ANCHO",14,14,"ALTAMIRA"]
[null,null,null,"LARGO",50,50,{"$f":"E8*E9","v":700}]
[null,null,null,"AREA TOTAL",{"$f":"E8*E9","v":700},{"$f":"F8*F9","v":700}]
[null,null,null,"CARPETA ASFALTICA 6CM",{"$f":"E10","v":700},{"$f":"F10","v":700}]
[]
[]
[]
[]
["H. XVIII AYUNTAMIENTO DE LA PAZ"]
["DIRECCIÓN GENERAL DE GESTIÓN INTEGRAL DE LA CIUDAD"]
["DIRECCION DE OBRAS PUBLICAS"]
[]
["CATALOGO DE CONCEPTOS"]
["LICITANTE:",null,null,null,null,"FECHA DEL CONCURSO:"]
["No. DE OBRA:   FOIS202402"]
["OBRA:   PAVIMENTACION CON CARPETA ASFALTICA DE LA CALLE BAHÍA CONCEPCIÓN, TRAMO BLVD FORJADORES A CARRETRA CAMINO A LOS PLANES, EN LA CIUDAD DE LA PAZ, TRAMO 05 DE CALLE DEL ARROYO A ISLA ESPIRITU SANTO 4+120 A 4+440"]
[null,null,null,null,null,null,"NOVIEMBRE DE 2024"]
["PAVIMENTACION CON CARPETA ASFALTICA DE LA CALLE BAHÍA CONCEPCIÓN, TRAMO BLVD FORJADORES A CARRETRA CAMINO A LOS PLANES, EN LA CIUDAD DE LA PAZ, TRAMO 05 DE CALLE DEL ARROYO A ISLA ESPIRITU SANTO 4+120 A 4+440"]
["CLAVE","CONCEPTO","UNIDAD","CANTIDAD","PRECIO UNITARIO","PRECIO UNITARIO CON LETRA","IMPORTE"]
["I.-","TRABAJOS PRELIMINARES DE OBRA"]
["I.1","SUMINISTRO Y COLOCACION LETRERO INFORMATIVO DE LA OBRA\" DE DOSCIENTOS CUARENTA Y CUATRO CENTÍMETROS (244 CM), POR CUATROCIENTOS OCHENTA Y OCHO CENTÍMETROS (488 CM), CON LA LEYENDA Y LOGOTIPOS QUE OPORTUNAMENTE SE LE PROPORCIONE. CADA LETRERO SE FORMARÁ CON UN BASTIDOR METÁLICO CON PERFILES COMERCIALES ADECUADOS Y RESISTENTES A LA ACCIÓN DEL VIENTO. SOPORTADOS CON COLUMNAS DE ACERO ESTRUCTURAL A-36 GALVANIZADAS DE TIPO PTR 3X3 CAL. 12 ANCLADAS CON CUATRO (4) ANCLAS DE ACERO COMERCIAL DE UNA (1) PULGADA DE DIÁMETRO EN CADA COLUMNA, AHOGADAS EN MUERTOS DE CONCRETO F´C=200 KG/CM2., LOGOTIPOS Y LA LEYENDA ALUSIVA, ASÍ COMO EN LA ESTRUCTURA METÁLICA SE USARÁ PRIMER ANTICORROSIVO, PINTURA DE ESMALTE DE COLOR PREVIAMENTE AUTORIZADO. SE LE DARÁ UN MANTENIMIENTO ADECUADO APLICANDO UN REPINTADO CUANDO SE LE INDIQUE.","PZA",2,null,null,{"$f":"E28*D28","v":0}]
["I.2","DESMONTE, POR UNIDAD DE OBRA TERMINADA.","M2",7360,null,null,{"$f":"E29*D29","v":0}]
["I.3","DESPALMES DE CORTES Y DESPLANTE DE TERRAPLENES, DESPERDICIANDO EL MATERIAL QUE SERÁ UTILIZADO PARA ARROPE DE TERRAPLENES, POR UNIDAD DE OBRA TERMINADA.","M3",1472,null,null,{"$f":"E30*D30","v":0}]
["I.4","EXCAVACIÓN POR MEDIOS MECANICOS Y/O MANUALES PARA OBRA DE DRENAJE Y SUBDRENAJE, EN ZANJAS, EN TERRENO CON CUALQUIER CLASIFICACION Y PROFUNDIDAD EN PRESENCIA DE AGUA O EN SECO, RETIRO DEL MATERIAL HASTA 4 M DE DISTANCIA HORIZONTAL, EL MATERIAL PRODUCTO DE LA EXCAVACION SE UTILIZARA PARA EL RELLENO DE LA MISMA, EL PRECIO UNITARIO INCLUYE: TRAZO Y NIVELACION, EQUIPO DE BOMBEO PARA ACHIQUE, OBRAS DE PROTECCION DE TALUDES DE ZANJA, TRASPALEO, SEÑALAMIENTO PREVENTIVO, AFINE DE TALUDES Y FONDO DE ZANJA, LIMPIEZA, LA MANO DE OBRA, EQUIPO Y HERRAMIENTA NECESARIOS PARA LA CORRECTA EJECUCIÓN DE LOS TRABAJOS. P.U.O.T.","M3",1030.8312000000001,null,null,{"$f":"E31*D31","v":0}]
["I.5","RELLENO DE LA OBRAS DE PROTECCIÓN Y/O DRENAJE UTILIZANDO MATERIALES COMPACTABLES PROCEDENTES DEL CORTE. INCLUYE: ESCARIFICADO, TENDIDO, INCORPORACION DE HUMEDAD, ACAMELLONADO EN ALAS, AFINE Y COMPACTACION AL 90% DE SU P.V.S.M. DE LA PRUEBA PROCTOR, CARGA Y ACARREO DEL MATERIAL NO UTILIZABLE DENTRO Y FUERA DE LA OBRA HASTA EL LUGAR INDICADO POR SUPERVISION, LA MANO DE OBRA, HERRAMIENTA Y EQUIPO NECESARIO. P.U.O.T.","M3",995.65,null,null,{"$f":"E32*D32","v":0}]
["II","SANEAMIENTO DE AGUA POTABLE"]
["II.1","TRAZO Y NIVELACIÓN CON EQUIPO TOPOGRÁFICO, INCLUYE: COLOCACIÓN Y CONSERVACIÓN DE REFERENCIAS, REUBICACIÓN DEL TRAZO Y NIVELACIÓN SI ES NECESARIO, BRIGADA EN OBRA HASTA SU TERMINACIÓN.","ML",320,null,null,{"$f":"E34*D34","v":0}]
["II.2","EXCAVACIÓN POR MEDIOS MECANICOS, EN ZANJAS, EN TERRENO CON CUALQUIER CLASIFICACION Y PROFUNDIDAD EN PRESENCIA DE AGUA O EN SECO, RETIRO DEL MATERIAL HASTA 4 M DE DISTANCIA HORIZONTAL, EL PRECIO UNITARIO INCLUYE: TRAZO Y NIVELACION, EQUIPO DE BOMBEO PARA ACHIQUE, OBRAS DE PROTECCION DE TALUDES DE ZANJA, TRASPALEO, SEÑALAMIENTO PREVENTIVO, LA MANO DE OBRA PARA EL APOYO EN LAS OPERACIONES MECÁNICAS, AFINE DE TALUDES Y FONDO DE ZANJA, LIMPIEZA, LA MAQUINARIA, HERRAMIENTA Y EL EQUIPO NECESARIOS PARA LA CORRECTA EJECUCIÓN DE LOS TRABAJOS. PUOT","M3",136,null,null,0]
["II.3","PLANTILLA COMPACTADA CON EQUIPO MECANICO DE 10 CMS. DE ESPESOR EN ZANJAS, CON MATERIAL SELECCIONADO PRODUCTO DE EXCAVACION LIBRE DE BOLEO MAYOR DE 3\". INCLUYE: CRIBADO DEL MATERIAL, ACARREOS DENTRO DE LA OBRA, INCORPORACION DE HUMEDAD, COMPACTACION DEL 85% PROCTOR, MANO DE OBRA, , HERRAMIENTA Y EQUIPO NECESARIO. ","M3",16,null,null,0]
["II.4","SUMINISTRO E INSTALACION DE TUBERIA DE 3\" DE DIAMETRO POR TUBERIA DE PVC. HIDRAULICO ANGER (RD-32.5) DE 3\" DE DIAMETRO. INCLUYE: TRAZO, NIVELACION, SUMINISTRO, INSTALACION, JUNTEO, LIMPIEZA, PRUEBA HIDRAULICA, INTERCONEXION A LA RED MUNICIPAL, SONDEO PARA LA LOCALIZACION DE TUBERIA, MANO DE OBRA Y HERRAMIENTA, U.O.T.","ML",320,null,null,0]
["II.5","RELLENO COMPACTADO EN ZANJAS CON EQUIPO MECANICO MANUAL EN CAPAS DE 20 CMS. EN CEPA, CON MATERIAL SELECCIONADO PRODUCTO DE LA EXCAVACION, COMPACTADO AL 95% PROCTOR. INCLUYE: ACARREOS DENTRO DE LA OBRA, INCORPORACION DE HUMEDAD, MANO DE OBRA, HERRAMIENTA Y EQUIPO NECESARIO. ","M3",136,null,null,0]
["II.6","SUMINISTRO E INSTALACION DE TEE DE PVC HIDRAULICO ANGER DE 3\" DE DIAMETRO. INCLUYE: MANIOBRAS, INSTALACION, MATERIALES NECESARIOS, DESPERDICIOS, CONSUMIBLES, LIMPIEZA, MANO DE OBRA Y  HERRAMIENTA. ","PZA",3,null,null,0]
["II.7","SUMINISTRO E INSTALACIÓN DE TAPÓN CAMPANA DE PVC \"ANGER\" DE 3\" DE DIÁMETRO.  INCLUYE: MANIOBRAS, INSTALACION, MATERIALES NECESARIOS, DESPERDICIOS, CONSUMIBLES, LIMPIEZA, MANO DE OBRA Y  HERRAMIENTA. ","PZA",3,null,null,0]
["II.8","CONSTRUCCION DE ATRAQUES DE CONCRETO F´C=200 KG/CM2 T.M.A. 3/4\" REV. NORMAL. ELABORADO EN OBRA, PARA ATRAQUES DE 30 X 30 CM. INCLUYE: ELABORACION, COLADO Y VIBRADO DE CONCRETO, CIMBRADO Y DESCIMBRADO, MATERIALES, MANO DE OBRA, HERRAMIENTA Y EQUIPO NECESARIO.","PZA",4,null,null,0]
["II.9","SUMINISTRO Y COLOCACION DE MARCO CON TAPA DE Fo.Fo. DE 50x50 CMS. CON PESO DE 75 KG. CON LEYENDA DE AGUA POTABLE. INCLUYE: MANIOBRAS, ACARREOS, MATERIAL, MANO DE OBRA Y HERRAMIENTA.","PZA",3,null,null,0]
["II.10","SUMINISTRO Y COLOCACION DE CONTRAMARCO SENCILLO DE 1.30 MTS. CON CANAL DE 6\" DE PERALTE. INCLUYE: MANIOBRAS, ACARREOS, MATERIAL, MANO DE OBRA Y HERRAMIENTA.","PZA",3,null,null,0]
["II.11","CORTE Y DESCABECE DE CAJA DE OPERACIÓN DE VALVULAS PARA DAR NIVEL DE PROYECTO Y PERMITIR EL TRANSITO DEL EQUIPO DE CONSTRUCCIÓN. INCLUYE: ACARREO DE ESCOMBRO, FUERA DE LA OBRA, HASTA EL LUGAR INDICADO POR SUPERVISIÓN, LA MANO DE OBRA, HERRAMIENTA.","PZA",3,null,null,{"$f":"E44*D44","v":0}]
["II.12","TERMINACIÓN DE CAJA DE OPERACIÓN DE VÁLVULAS DE 1.20X1.40 M, HASTA NIVEL DE PROYECTO. INCLUYE: CORTE CON CORTADORA DE DISCO, DEMOLICIONES NECESARIAS POR MEDIOS MANUALES, LOSA DE CONCRETO F'C=250 KG/CM² T.M.A. ¾\" REV. NORMAL DE 15 CM DE ESPESOR. ACABADO EXTERIOR RAYADO CON BROCHA DE PELO, ARMADA CON VARILLA DEL NO. 3 A CADA 10 CM, EN AMBOS SENTIDOS, MUROS DE BLOCK 15X20X40 CM ASENTADO CON MORTERO CEMENTO ARENA 1:5, APLANADO PULIDO INTERIOR, DESAZOLVE Y LIMPIEZA EN CASO NECESARIO, SUMINISTRO Y COLOCACIÓN DE CONTRAMARCO DE 1.10 M CON CANAL DE 4\" INSTALACIÓN DE MARCO Y TAPA (DE RECUPERACIÓN) CON LEYENDA DE AGUA POTABLE DE FO.FO. DE 50X40 CM TIPO PESADO, MANIOBRAS, ACARREOS, CARGA Y RETIRO DE ESCOMBRO FUERA DE OBRA, EXCAVACIÓN Y RELLENO COMPACTADO EN CAPAS DE 20 CM, AL 95% DE SU PVSM. MATERIALES, MANO DE OBRA, HERRAMIENTA Y EQUIPO NECESARIO.","PZA",3,null,null,{"$f":"E45*D45","v":0}]
[null,"TOMAS DOMICILIARIAS"]
["II.13","SUMINISTRO DE TUBO DE POLIETILENO ALUMINIO POLIETILENO DE 1/2\" DE DIÁMETRO CON LA NORMA ASTM 1282 TIPO KITEC NORMA NMX-E-250-CNCP-2006. INCLUYE: MANIOBRAS, INSTALACION, MATERIALES NECESARIOS, DESPERDICIOS, CONSUMIBLES, LIMPIEZA, MANO DE OBRA Y  HERRAMIENTA. ","ML",80,null,null,{"$f":"E47*D47","v":0}]
["II.14","SUMINISTRO E INSTALACIÓN DE MATERIALES DE TOMA DOMICILIARIA DE ½” Ø. INCLUYE: INSTALACIÓN DE TUBO DE ALUMINIO POLIETILENO DE ½” Ø, VÁLVULA DE CONTROL DE DOBLE BLOQUEO DE ½” Ø ROSCA HEMBRA, CUADRO DE MEDICIÓN DE 2.00 MTS DE TUBO DE PVC DE ½” Ø, DOS CODOS HEMBRA DE PVC DE 90°X½” Ø, CONECTOR MACHO PVC DE ½” Ø, DOS CODOS LISOS DE PVC DE 90°X½” Ø, MICROMEDIDOR DE GASTO DE ½” Ø (INCLUYE DOS NIPLES), ABRAZADERA TIPO FLO-TAP CON CUÑA DE PVC Y SACABOCADO INTEGRADO DE 3” X ¾”Ø, REDUCCIÓN BUSHING DE PVC DE ¾” X ½”Ø CON ROSCA INTERIOR, ADAPTADOR MACHO DE ½” Ø, CAJA DE POLIETILENO DE ALTA DENSIDAD PARA PROTECCIÓN DE VÁLVULA DE DOBLE BLOQUEO Y TODO LO NECESARIO PARA SU CORRECTO FUNCIONAMIENTO.","PZA",10,null,null,{"$f":"E48*D48","v":0}]
["III","SANEAMIENTO DE LA RED DE DRENAJE"]
["III.1","TRAZO Y NIVELACIÓN CON EQUIPO TOPOGRÁFICO, COLOCACIÓN Y CONSERVACIÓN DE REFERENCIAS, REUBICACIÓN DEL TRAZO Y NIVELACIÓN SI ES NECESARIO, BRIGADA EN OBRA HASTA SU TERMINACIÓN.","ML",320,null,null,{"$f":"E50*D50","v":0}]
["III.2","EXCAVACIÓN POR MEDIOS MECANICOS, EN ZANJAS, EN TERRENO CON CUALQUIER CLASIFICACION Y PROFUNDIDAD EN PRESENCIA DE AGUA O EN SECO, RETIRO DEL MATERIAL HASTA 4 M DE DISTANCIA HORIZONTAL, EL PRECIO UNITARIO INCLUYE: TRAZO Y NIVELACION, EQUIPO DE BOMBEO PARA ACHIQUE, OBRAS DE PROTECCION DE TALUDES DE ZANJA, TRASPALEO, SEÑALAMIENTO PREVENTIVO, LA MANO DE OBRA PARA EL APOYO EN LAS OPERACIONES MECÁNICAS, AFINE DE TALUDES Y FONDO DE ZANJA, LIMPIEZA, LA MAQUINARIA, HERRAMIENTA Y EL EQUIPO NECESARIOS PARA LA CORRECTA EJECUCIÓN DE LOS TRABAJOS. PUOT","M3",192,null,null,0]
["III.3","PLANTILLA APISONADA CON EQUIPO MECANICO DE 10 CMS. DE ESPESOR EN ZANJAS, CON MATERIAL SELECCIONADO PRODUCTO DE EXCAVACION LIBRE DE BOLEO MAYOR DE 3\". INCLUYE: CRIBADO DEL MATERIAL, ACARREOS DENTRO DE LA OBRA, INCORPORACION DE HUMEDAD, COMPACTACION DEL 85% PROCTOR, MANO DE OBRA, , HERRAMIENTA Y EQUIPO NECESARIO. ","M3",16,null,null,0]
["III.4","SUMINISTRO, INSTALACION, JUNTEO Y PRUEBA HIDROSTATICA DE TUBERIA  DE PVC TIPO \"ANGER\" DE 8\" DE DIAMETRO RD-35. INCLUYE: SUMINISTRO DE TUBO, MATERIAL, MANIOBRAS, EQUIPO PARA TAPONAMIENTO, CONEXION E INTERCONEXION DEL TUBO A POZOS DE VISITA (CONSTRUIDOS Y/O EXISTENTES),  MANO DE OBRA Y HERRAMIENTA, REPARACION PROVISIONAL DE DESCARGAS DOMICILIARIAS, SONDEO PARA LA LOCALIZACION DE TUBERIA, U.O.T.","ML ",320,null,null,0]
["III.5","RELLENO COMPACTADO EN ZANJAS CON EQUIPO MECANICO MANUAL EN CAPAS DE 20 CMS. EN CEPA, CON MATERIAL SELECCIONADO PRODUCTO DE LA EXCAVACION, COMPACTADO AL 95% PROCTOR. INCLUYE: ACARREOS DENTRO DE LA OBRA, INCORPORACION DE HUMEDAD, MANO DE OBRA, HERRAMIENTA Y EQUIPO NECESARIO. ","M3",136,null,null,0]
["III.6","EXTENDIDO Y BANDEADO DE MATERIAL SOBRANTE DE EXCAVACIÓN.  INCLUYE: MANO DE OBRA, HERRAMIENTA Y EQUIPO NECESARIO. ","M3",34.090000000000003,null,null,0]
["III.7","FABRICACIÓN DE POZO DE VISITA TIPO COMÚN DE HASTA 1.25 Mts. DE PROFUNDIDAD  INTERIOR, LOSA DE CIMENTACION DE CONCRETO F´c=200 Kg/cm2. REV. NORMAL. T.M.A. 3/4\" DE 20 CM DE ESPESOR. ARMADA CON VARILLA CORRUGADA DEL No. 4 (1/2\") @ 15 CM EN AMBOS SENTIDOS, MEDIA CAÑA PULIDA DE LA 1/2 DEL DIAMETRO, Y CHAFLANES DE CONCRETO HASTA LA PARTE SUPERIOR DEL TUBO, MURO DE TABIQUE TIPO CUÑA DE 23 CM DE PERALTE. JUNTEADO Y APLANADO CON MORTERO DE CEMENTO-ARENA 1:4, APLANADO INTERIOR PULIDO, ANILLO PROTECTOR DE CONCRETO ARMADO  DE 20 CM DE ESPESOR PARA RECIBIR EL BROCAL, MATERIALES, MANO DE OBRA Y HERRAMIENTA. INCLUYE: EXCAVACION, RELLENO COMPACTADO AL 95% EN CAPAS DE 20 CM (NO INCLUYE BROCAL DE Fo.Fo.)","PZA",3,null,null,0]
["III.8","FABRICACIÓN DE POZO DE VISITA TIPO COMÚN DE HASTA 1.50 Mts. DE PROFUNDIDAD INTERIOR, LOSA DE CIMENTACION DE CONCRETO F´c=200 Kg/cm2. REV. NORMAL. T.M.A. 3/4\" DE 20 CM DE ESPESOR. ARMADA CON VARILLA CORRUGADA DEL No. 4 (1/2\") @ 15 CM EN AMBOS SENTIDOS, MEDIA CAÑA PULIDA DE LA 1/2 DEL DIAMETRO, Y CHAFLANES DE CONCRETO HASTA LA PARTE SUPERIOR DEL TUBO, MURO DE TABIQUE TIPO CUÑA DE 23 CM DE PERALTE. JUNTEADO Y APLANADO CON MORTERO DE CEMENTO-ARENA 1:4, APLANADO INTERIOR PULIDO, ANILLO PROTECTOR DE CONCRETO ARMADO  DE 20 CM DE ESPESOR PARA RECIBIR EL BROCAL, MATERIALES, MANO DE OBRA Y HERRAMIENTA. INCLUYE: EXCAVACION, RELLENO COMPACTADO AL 95% EN CAPAS DE 20 CM (NO INCLUYE BROCAL DE Fo.Fo.)","PZA",2,null,null,0]
["III.9","FABRICACIÓN DE POZO DE VISITA TIPO COMÚN DE HASTA 1.75 Mts. DE PROFUNDIDAD INTERIOR, LOSA DE CIMENTACION DE CONCRETO F´c=200 Kg/cm2. REV. NORMAL. T.M.A. 3/4\" DE 20 CM DE ESPESOR. ARMADA CON VARILLA CORRUGADA DEL No. 4 (1/2\") @ 15 CM EN AMBOS SENTIDOS, MEDIA CAÑA PULIDA DE LA 1/2 DEL DIAMETRO, Y CHAFLANES DE CONCRETO HASTA LA PARTE SUPERIOR DEL TUBO, MURO DE TABIQUE TIPO CUÑA DE 23 CM DE PERALTE. JUNTEADO Y APLANADO CON MORTERO DE CEMENTO-ARENA 1:4, APLANADO INTERIOR PULIDO, ANILLO PROTECTOR DE CONCRETO ARMADO  DE 20 CM DE ESPESOR PARA RECIBIR EL BROCAL, MATERIALES, MANO DE OBRA Y HERRAMIENTA. INCLUYE: EXCAVACION, RELLENO COMPACTADO AL 95% EN CAPAS DE 20 CM (NO INCLUYE BROCAL DE Fo.Fo.)","PZA",1,null,null,0]
["III.10","FABRICACIÓN DE POZO DE VISITA TIPO COMÚN DE HASTA 2.00 Mts. DE PROFUNDIDAD INTERIOR, LOSA DE CIMENTACION DE CONCRETO F´c=200 Kg/cm2. REV. NORMAL. T.M.A. 3/4\" DE 20 CM DE ESPESOR. ARMADA CON VARILLA CORRUGADA DEL No. 4 (1/2\") @ 15 CM EN AMBOS SENTIDOS, MEDIA CAÑA PULIDA DE LA 1/2 DEL DIAMETRO, Y CHAFLANES DE CONCRETO HASTA LA PARTE SUPERIOR DEL TUBO, MURO DE TABIQUE TIPO CUÑA DE 23 CM DE PERALTE. JUNTEADO Y APLANADO CON MORTERO DE CEMENTO-ARENA 1:4, APLANADO INTERIOR PULIDO, ANILLO PROTECTOR DE CONCRETO ARMADO  DE 20 CM DE ESPESOR PARA RECIBIR EL BROCAL, MATERIALES, MANO DE OBRA Y HERRAMIENTA. INCLUYE: EXCAVACION, RELLENO COMPACTADO AL 95% EN CAPAS DE 20 CM (NO INCLUYE BROCAL DE Fo.Fo.)","PZA",1,null,null,0]
["III.11","FABRICACIÓN DE POZO DE VISITA TIPO COMÚN DE HASTA 2.75 Mts. DE PROFUNDIDAD INTERIOR, LOSA DE CIMENTACION DE CONCRETO F´c=200 Kg/cm2. REV. NORMAL. T.M.A. 3/4\" DE 20 CM DE ESPESOR. ARMADA CON VARILLA CORRUGADA DEL No. 4 (1/2\") @ 15 CM EN AMBOS SENTIDOS, MEDIA CAÑA PULIDA DE LA 1/2 DEL DIAMETRO, Y CHAFLANES DE CONCRETO HASTA LA PARTE SUPERIOR DEL TUBO, MURO DE TABIQUE TIPO CUÑA DE 23 CM DE PERALTE. JUNTEADO Y APLANADO CON MORTERO DE CEMENTO-ARENA 1:4, APLANADO INTERIOR PULIDO, ANILLO PROTECTOR DE CONCRETO ARMADO  DE 20 CM DE ESPESOR PARA RECIBIR EL BROCAL, MATERIALES, MANO DE OBRA Y HERRAMIENTA. INCLUYE: EXCAVACION, RELLENO COMPACTADO AL 95% EN CAPAS DE 20 CM (NO INCLUYE BROCAL DE Fo.Fo.)","PZA",1,null,null,0]
["III.12","SUMINISTRO Y COLOCACION DE BROCAL DE Fo.Fo. CIEGO TIPO PESADO PARA POZO DE VISITA, INCLUYE: LOSA DE 1.20 x 1.20 M CON CONCRETO F'C= 250 KG/CM2 DE 10 CM DE ESPESOR. ACABADO EXTERIOR RAYADO CON BROCHA DE PELO, ARMADA CON VARILLA CORRUGADA DEL No.3 @ 10 CM AMBOS SENTIDOS, VARILLA CORRUGADA DEL No.3 SOLDADA AL PERIMETRO DEL BROCAL PARA AMARRE DEL ARMADO DE LA PARILLA, CARGA Y RETIRO DEL MATERIAL NO UTILIZABLE FUERA DE OBRA, HASTA LUGAR INDICADO, ACARREOS, GANCHOS, TRASLAPES, HABILITADO Y ARMADO, CIMBRA EN FRONTERAS, CORTE CON CORTADORA DE DISCO DE ACUERDO A SECCION, MANIOBRAS, MATERIAL, MANO DE OBRA Y HERRAMIENTA. ACABADO RAYADO CON BROCHA DE PELO DEL CONCRETO. ","PZA",8,null,null,0]
["III.13","CORTE Y DESCABECE DE POZOS DE VISITA PARA DAR NIVEL DE RASANTE Y PERMITIR LA LIBRE CIRCULACION DE MAQUINARIA. INCLUYE:RECUPERACION DEL BROCAL EN SU CASO,  CARGA Y RETIRO DE ESCOMBRO FUERA DE OBRA HASTA EL LUGAR INDICADO POR LA SUPERVISION, MANO DE OBRA, HERRAMIENTA Y EQUIPO NECESARIO.","PZA",1,null,null,0]
["III.14","TERMINACIÓN DE POZO DE VISITA HASTA 1 M PARA DAR NIVEL DE RASANTE DE PROYECTO, INCLUYE: CORTE CON CORTADORA DE DISCO,  MURO DE TABIQUE TIPO CUÑA DE 12 CM DE PERALTE. JUNTEADO Y APLANADO CON MORTERO DE CEMENTO-ARENA 1:4, APLANADO INTERIOR PULIDO, ANILLO PROTECTOR DE CONCRETO ARMADO  DE 20 CM DE ESPESOR PARA RECIBIR EL BROCAL, SUMINISTRO Y COL. DE ESCALERA MARINA A BASE DE VARILLA CORRUGADA DEL NO.8 (1\"). HUELLA DE 50 CM. CON UNA SEPARACION @ 40 CM (CON PRIMER ANTICORROSIVO). MATERIALES, MANO DE OBRA Y HERRAMIENTA. INCLUYE: EXCAVACIÓN, RELLENO COMPACTADO AL 95% EN CAPAS DE 20 CM (NO INCLUYE BROCAL DE FO.FO.), MATERIALES NECESARIOS, HERRAMIENTA, EQUIPO Y MANO DE OBRA.","PZA",1,null,null,0]
[null,"DESCARGAS DOMICILIARIAS"]
["III.15","TRAZO Y NIVELACIÓN CON EQUIPO TOPOGRÁFICO, INCLUYE: COLOCACIÓN Y CONSERVACIÓN DE REFERENCIAS, REUBICACIÓN DEL TRAZO Y NIVELACIÓN SI ES NECESARIO, BRIGADA EN OBRA HASTA SU TERMINACIÓN.","ML",80,null,null,0]
["III.16","EXCAVACIÓN POR MEDIOS MECANICOS, EN ZANJAS, EN TERRENO CON CUALQUIER CLASIFICACION Y PROFUNDIDAD HASTA 3 MTS., RETIRO DEL MATERIAL HASTA 4 MTS DE DISTANCIA HORIZONTAL, EL PRECIO UNITARIO INCLUYE: TRAZO Y NIVELACION, EQUIPO DE BOMBEO PARA ACHIQUE, OBRAS DE PROTECCION DE TALUDES DE ZANJA, TRASPALEO, SEÑALAMIENTO PREVENTIVO, LA MANO DE OBRA PARA EL APOYO EN LAS OPERACIONES MECÁNICAS, AFINE DE TALUDES Y FONDO DE ZANJA, LIMPIEZA, LA MAQUINARIA, HERRAMIENTA Y EL EQUIPO NECESARIOS PARA LA CORRECTA EJECUCIÓN DE LOS TRABAJOS. PUOT","M3",48,null,null,0]
["III.17","PLANTILLA APISONADA CON EQUIPO MECANICO DE 10 CMS. DE ESPESOR EN ZANJAS, CON MATERIAL SELECCIONADO PRODUCTO DE EXCAVACION LIBRE DE BOLEO MAYOR DE 3\". INCLUYE: CRIBADO DEL MATERIAL, ACARREOS DENTRO DE LA OBRA, INCORPORACION DE HUMEDAD, COMPACTACION DEL 85% PROCTOR, MANO DE OBRA, , HERRAMIENTA Y EQUIPO NECESARIO. ","M3",4,null,null,0]
["III.18","SUMINISTRO, INSTALACION, JUNTEO Y PRUEBA HIDROSTATICA DE TUBERIA  DE PVC TIPO \"ANGER\" DE 6\" DE DIAMETRO RD-35. INCLUYE: SUMINISTRO DE TUBO, MATERIAL, MANIOBRAS, EQUIPO PARA TAPONAMIENTO, CONEXION E INTERCONEXION DEL TUBO A POZOS DE VISITA (CONSTRUIDOS Y/O EXISTENTES),  MANO DE OBRA Y HERRAMIENTA, REPARACION PROVISIONAL DE DESCARGAS DOMICILIARIAS, SONDEO PARA LA LOCALIZACION DE TUBERIA, U.O.T.","ML",80,null,null,0]
["III.19","RELLENO COMPACTADO EN ZANJAS CON EQUIPO MECANICO MANUAL EN CAPAS DE 20 CMS. EN CEPA, CON MATERIAL SELECCIONADO PRODUCTO DE LA EXCAVACION, COMPACTADO AL 95% PROCTOR. INCLUYE: ACARREOS DENTRO DE LA OBRA, INCORPORACION DE HUMEDAD, MANO DE OBRA, HERRAMIENTA Y EQUIPO NECESARIO. ","M3",28,null,null,0]
["III.20","EXTENDIDO Y BANDEADO DE MATERIAL SOBRANTE DE EXCAVACIÓN.  INCLUYE: MANO DE OBRA, HERRAMIENTA Y EQUIPO NECESARIO. ","M3",3.92,null,null,0]
["III.21","SUMINISTRO E INSTALACIÓN DE DESCARGA  DOMICILIARIA PARA DRENAJE CON TUBERÍA SANITARIA DE PVC TIPO \"ANGER\" DE 6\" DE DIÁMETRO. RD-35. INCLUYE: INSTALACIÓN DE SILLETA SANITARIA DE 8\"X6\" DE DIÁMETRO, CODO DE PVC DE 45°X6\" MATERIALES NECESARIOS, DESPERDICIOS, CONSUMIBLES, LIMPIEZA, MANO DE OBRA Y  HERRAMIENTA. .","PZA",8,null,null,0]
["III.22","CONSTRUCCION DE REGISTRO SANITARIO DE 40x60 CM Y HASTA 1.20 M DE PROFUNDIDAD MEDIDA INTERIOR. A BASE DE BLOCK HUECO DE 15x20x40 CM. JUNTEADO Y APLANADO CON MORTERO DE CEMENTO-ARENA EN PROPORCION 1:4, ACABADO PULIDO INTERIOR. CON MEDIA CAÑA DE CONCRETO, TAPA DE CONCRETO F'c=150 kg/cm2. T.M.A. 19 MM (3/4\") R. NORMAL. (TAPA COLADA EN SITIO DE ACUERDO A LOS ACABADOS DE BANQUETAS SEGÚN PROYECTO ESTA INCLUIRA 2 AZAS RETRACTILES PARA IZAJE HECHAS CON VARILLA DE 3/8\" SEGUN INDICACIONES DE SUPERVISION). ARMADO CON VARILLA CORRUGADA DEL No.3 @ 10 CM, AMBOS SENTIDOS SOLDADAS, MARCO A BASE DE ANGULO DE FIERRO DE 1 1/2\" x 1 1/2\" x 1/8\" Y CONTRAMARCO CON ANGULO DE FIERRO DE 2\" x 2\" x 1/8\" DE ESPESOR. INCLUYE: TAPA PROVISIONAL DE MADERA, DEMOLICIONES DE REGISTRO EXISTENTE DE SER NECESARIO, CARGA Y RETIRO DE MATERIAL NO UTILIZABLE FUERA DE LA OBRA, HASTA EL LUGAR INDICADO POR SUPERVISION, EXCAVACION Y RELLENO COMPACTADO AL 85%  EN CAPAS DE 20 CM., MATERIALES, MANO DE OBRA Y HERRAMIENTA. (LA TAPA DE CONCRETO DEBERA SER REFORZADA CUANDO QUEDE EN LA ZONA DE ACCESO VEHICULAR).\n","PZA",8,null,null,0]
["IV","GUARNICIONES"]
["IV.1","EXCAVACION A MANO EN TERRENO CON CUALQUIER CLASIFICACION Y PROFUNDIDAD EN PRESENCIA DE AGUA O EN SECO, PARA DESPLANTE DE GUARNICION. INCLUYE: TRAZO, NIVELACION, AFINE DE FONDO Y TALUDES, RETIRO DE MATERIAL HASTA 4 MTS. DE DISTANCIA HORIZONTAL, MATERIALES, MANO DE OBRA, HERRAMIENTA Y EQUIPO NECESARIO","M3",{"$f":"D75*0.4*0.4","v":57.859200000000001},null,null,{"$f":"ROUND(E74*D74,2)","v":0}]
["IV.2","GUARNICION DE CONCRETO F´c=150 kg/cm2. R.N. T.M.A. 19 MM. DE 15X20X40 CM DE SECCION TRAPEZOIDAL, CON JUNTAS DE EXPANSION A CADA 4.50 M. CON CARTON ASFALTADO DE 3/8\" DE ESPESOR. INCLUYE: CIMBRA, DESCIMBRADO, ELABORACION, COLADO, VIBRADO Y CURADO DEL CONCRETO,  TRANSPORTE A LA SIGUIENTE POSICION, MATERIALES, MANO DE OBRA Y HERRAMIENTA","ML",{"$f":"481.62-120","v":361.62},null,null,{"$f":"ROUND(E75*D75,2)","v":0}]
["IV.3","CONFINAMIENTO DE GUARNICION CON MATERIAL SELECCIONADO PRODUCTO DE LA EXCAVACION, LIBRE DE BOLEOS DE MAS DE 3\", PRODUCTO DE LA EXCAVACION: INCLUYE MANO DE OBRA Y HERRAMIENTA.","ML",{"$f":"D75","v":361.62},null,null,{"$f":"ROUND(E76*D76,2)","v":0}]
["IV.4","SUMINISTRO Y APLICACIÓN DE PINTURA VINILICA AHULADA MARCA COMEX, EN COLOR BLANCO O AMARILLO (PREVIAMENTE AUTORIZADO) EN TRAMOS RECTOS Y ROJO EN CURVAS, A DOS MANOS EN GUANICIONES DE CONCRETO, INCLUYE: PREPARACION DE LA SUPERFICIE, LIMPIEZA, MATERIALES, MANO DE OBRA Y HERRAMIENTA.","ML",{"$f":"D75","v":361.62},null,null,{"$f":"ROUND(E77*D77,2)","v":0}]
["IV.5","DEMOLICION DE GUARNICIONES DE CONCRETO EXISTENTES POR ENCONTRARSE EN MALAS CONDICIONES Y/O NO DAR LOS NIVELES DE PROYECTO. INCLUYE: CORTE CON CORTADORA DE DISCO, CARGA Y RETIRO DE ESCOMBRO FUERA DE LA OBRA HASTA EL LUGAR INDICADO POR LA SUPERVISION, LA MANO DE OBRA, HERRAMIENTA Y EQUIPO NECESARIO.","ML",10,null,null,{"$f":"ROUND(E78*D78,2)","v":0}]
["V","OBRAS DE PROTECCION (VADO)",null,"."]
["V.1","TRAZO Y NIVELACION DE TERRACERIAS, AL AMPARO DE ESTE CONCEPTO EL CONTRATISTA DE ACUERDO A LOS PLANOS DE PROYECTO QUE LE SEAN SUMINISTRADOS, HARA EL TRAZO Y NIVELACION CON EQUIPO DE TOPOGRAFIA DE LOS EJES, LIMITES Y DETALLES CONSTRUCTIVOS DE LOS TRABAJOS. DEBERA COLOCAR REFERENCIAS FIJAS, FUERA DE LAS AREAS DE LOS TRABAJOS PARA ASEGURAR LOS ALINEAMIENTOS Y NIVELES. INCLUYE: LOS MATERIALES, MANO DE OBRA, HERRAMIENTA Y EQUIPO NECESARIO.","M2",2038.11,null,null,{"$f":"ROUND(E80*D80,2)","v":0}]
["V.2","EXCAVACION POR MEDIOS MECANICOS EN TERRENO CON CUALQUIER CLASIFICACION EN TERRENO NATURAL, EL MATERIAL PRODUCTO DEL CORTE SE UTILIZARA PARA EL RELLENO DEL MISMO ELEMENTO A CONSTRUIR. INCLUYE: AFINE DE FONDO, ACAMELLONADO DEL MATERIAL PARA SER UTILIZADO POSTERIORMENTE, HERRAMIENTA, EQUIPO NECESARIO Y MANO DE OBRA.","M3",{"$f":"(105.23*(3.8+2.4))+(64.49*4)+(0.16*105.23*2)","v":944.05959999999993},null,null,{"$f":"ROUND(E81*D81,2)","v":0}]
["V.3","CONSTRUCCIÓN DE MURO DE MAMPOSTERÍA DE PIEDRA BRAZA DE TERCERA CLASE JUNTEADO CON MORTERO CEMENTO EN PROPORCIÓN 1:3, PARA PROTECCIÓN DE LA GAZA DE INCORPORACIÓNINCLUYE:  FLETE Y ACARREOS HASTA LA OBRA, ACARREOS HASTA EL LUGAR DE COLOCACION, CARGA, ACARREOS, TRAZO, NIVELACION, LA MANO DE OBRA, HERRAMIENTA Y EQUIPO NECESARIO. P.U.O.T.","M3",{"$f":"(105.23*(1.04+1.28))","v":244.13360000000003},null,null,{"$f":"ROUND(E82*D82,2)","v":0}]
["V.4","RELLENO COMPACTADO CON EQUIPO MECANICO MANUAL EN CAPAS DE 20 CM EN CEPA CON MATERIAL SELECCIONADO PRODUCTO DE LA EXCAVACION LIBRE DE BOLEO MAYOR DE 3\", COMPACTADO AL 90% PROCTOR. INCLUYE: ACARREOS DENTRO DE LA OBRA, INCORPORACION DE HUMEDAD, MANO DE OBRA, HERRAMIENTA Y EQUIPO NECESARIO. ","M3",{"$f":"D81-D82-D84","v":509.90599999999995},null,null,{"$f":"E83*D83","v":0}]
["V.5","SUMINISTRO Y COLOCACION DE GAVION DE (2.00x1.00x1.00 MTS.). CUADRADO DE ALAMBRE GALVANIZADO SIN RECUBRIMIENTO EN MALLA METALICA DE TRIPLE TORSION DE ALAMBRE DE ACERO BAJO CARBON GALVANIZADO CLASE III. CALIBRE 12. REFORZADO EN SUS ARISTAS CON ALAMBRE GALV. E ACERO BAJO CARBON  CAL.10,  ESCUADRIA 8x10 CMS. INCLUYE ALAMBRE PARA AMARRES, FLETE Y ACARREOS HASTA LA OBRA, ARMADO DE GAVION POR MEDIOS MANUALES EN SECCION DE ACUERDO A PROYECTO, AMARRES, ACARREOS HASTA EL LUGAR DE COLOCACION, SUMINISTRO, CARGA, ACARREOS, COLOCACION Y ACOMODO A MANO DE PIEDRA DE CANTO RODADO O DE EXPLOTACION DE LA REGION, SANA Y NO INTEMPERIZABLE (CON UNA GRANULOMETRIA DE 4 A 8 PULGADAS) PARA EL LLENADO DE GAVIONES, TRAZO, NIVELACION, EXCAVACION EN TERRENO INVESTIGADO EN OBRA, RELLENO COMPACTADO AL 95% MINIMO, CON MATERIAL SELECCCIONADO PRODUCTO DE LA EXCAVACION, LA MANO DE OBRA, HERRAMIENTA Y EQUIPO NECESARIO. P.U.O.T. (DETALLES EN PLANO).","M3",{"$f":"3*63.34","v":190.02},null,null,{"$f":"ROUND(E84*D84,2)","v":0}]
["V.6","CADENA DE 40 X 40 CMS CON CONCRETO F´C=250 KG/CM2, ARMADO CON 4 VARILLAS DEL #4 (1/2\") Y EST. DEL #3 @ 25 CMS, ACABADO APARENTE, INCLUYE: FABRICACION, VACIADO, VIBRADO DE CONCRETO, HABILITADO  COLOCACION DE ACERO DE REFUERZO, CIMBRA, DESCIMBRA, DESPERDICIOS, HERRAMIENTA, EQUIPO Y MANO DE OBRA. ","ML",{"$f":"105.23*2","v":210.46},null,null,0]
["V.7","ANCLAJE DE 40 X 40 X 50 CMS CON CONCRETO F´C=250 KG/CM2, ARMADO CON 4 VARILLAS DEL #4 (1/2\") Y EST. DEL #3 @ 25 CMS, ACABADO APARENTE, INCLUYE: FABRICACION, VACIADO, VIBRADO DE CONCRETO, HABILITADO  COLOCACION DE ACERO DE REFUERZO, CIMBRA, DESCIMBRA, DESPERDICIOS, HERRAMIENTA, EQUIPO Y MANO DE OBRA. ","PZA",42,null,null,0]
["V.8","DENTELLON DT-1, DE 15 X 30 CMS CON CONCRETO F´C=250 KG/CM2, ARMADO CON 6 VARILLAS DEL #3 (3/8\") Y EST. DEL #2 @ 20 CMS, ACABADO APARENTE, INCLUYE: FABRICACION, VACIADO, VIBRADO DE CONCRETO, HABILITADO  COLOCACION DE ACERO DE REFUERZO, CIMBRA, DESCIMBRA, DESPERDICIOS, HERRAMIENTA, EQUIPO Y MANO DE OBRA. ","ML",{"$f":"13*4","v":52},null,null,0]
["V.9","SUMINISTRO Y COLOCACION DE MALLA ELECTROSOLDADA EN ZAMPEADO Y DENTELLÓN 6-6/4-4. INCLUYE: ALAMBRE PARA AMARRES, FLETE Y ACARREOS HASTA LA OBRA, ACARREOS HASTA EL LUGAR DE COLOCACION, SUMINISTRO, CARGA, ACARREOS, TRAZO, NIVELACION, LA MANO DE OBRA, HERRAMIENTA Y EQUIPO NECESARIO. P.U.O.T.","M2",{"$f":"13*4*10","v":520},null,null,0]
["V.10","CONSTRUCCIÓN DE ZAMPEADO DE DESCARGA Y DENTELLÓN DE CONCRETO HIDRAULICO F´c= 150 KG/CM² HECHO EN OBRA, T.M.A. 3/4\". DE 10 CM DE ESPESOR CON UN REVENIMIENTO DE 12-15 CM., PARA OBRA DE DRENAJE MENOR. INCLUYE: CIMBRA CON MADERA DE PINO ACABADO COMUN, COLADO, VIBRADO, AFINE, CURADO. FLETE Y ACARREOS HASTA LA OBRA, EN SECCION DE ACUERDO A PROYECTO, AMARRES, ACARREOS HASTA EL LUGAR DE COLOCACION, SUMINISTRO, CARGA, ACARREOS, TRAZO, NIVELACION, EXCAVACION EN TERRENO INVESTIGADO EN OBRA, RELLENO COMPACTADO AL 95% MINIMO, CON MATERIAL SELECCCIONADO PRODUCTO DE LA EXCAVACION, LA MANO DE OBRA, HERRAMIENTA Y EQUIPO NECESARIO. P.U.O.T. (DETALLES EN PLANO).","M3",{"$f":"D88*0.1","v":52},null,null,0]
["VI"," TERRACERIAS"]
["VI.1","TRAZO Y NIVELACION DE TERRACERIAS, AL AMPARO DE ESTE CONCEPTO EL CONTRATISTA DE ACUERDO A LOS PLANOS DE PROYECTO QUE LE SEAN SUMINISTRADOS, HARA EL TRAZO Y NIVELACION CON EQUIPO DE TOPOGRAFIA DE LOS EJES, LIMITES Y DETALLES CONSTRUCTIVOS DE LOS TRABAJOS. DEBERA COLOCAR REFERENCIAS FIJAS, FUERA DE LAS AREAS DE LOS TRABAJOS PARA ASEGURAR LOS ALINEAMIENTOS Y NIVELES. INCLUYE: LOS MATERIALES, MANO DE OBRA, HERRAMIENTA Y EQUIPO NECESARIO.","M2",{"$f":"6580-750","v":5830},null,null,{"$f":"ROUND(E91*D91,2)","v":0}]
["VI.2","EXCAVACION Y/O CORTE POR MEDIOS MECANICOS EN TERRENO CON CUALQUIER CLASIFICACION EN TERRENO NATURAL, EL MATERIAL PRODUCTO DEL CORTE SE UTILIZARA EN LA FORMACION DE TERRAPLENES, CON ESPESOR VARIABLE PARA DAR EL NIVEL DEL TERRAPLEN. INCLUYE: ESCARIFICADO, ACAMELLONADO DEL MATERIAL PARA SER RETIRADO, Y EL EQUIPO NECESARIO.","M3",1052,null,null,0]
["VI.3","CARGA Y ACARREO  DEL MATERIAL PRODUCTO DE CORTES DE DESPERDICIO NO UTILIZABLE PARA EL PRIMER KILOMETRO DE DISTANCIA. INCLUYE EL EQUIPO NECESARIO","M3",394.80000000000007,null,null,0]
["VI.4","AFINE Y COMPACTACION DE TERRACERIAS PARA DAR NIVELES DE PROYECTO DEFINITIVOS. INCLUYE: ESCARIFICADO, INCORPORACION DE HUMEDAD OPTIMA, AFINE Y COMPACTACION AL 95% DE SU  PVSM DE LA PRUEBA PROCTOR MODIFICADA  (ASSHTO). INCLUYE. LA MANO DE OBRA, Y EQUIPO NECESARIO.","M2",{"$f":"D91","v":5830},null,null,0]
["VI.5","TRATAMIENTO Y CONFORMACION DEL TERRENO NATURAL POR MEDIOS MECANICOS CON MATERIAL DEL LUGAR. INCLUYE: ESCARIFICADO, ACAMELLONADO, INCORPORACION DE HUMEDAD OPTIMA, TENDIDO, AFINE Y COMPACTACION AL 95% DE SU PVSM. DE LA PRUEBA PROCTOR MODIFICADA (ASSHTO). CON UN ESPESOR DE 15 CM. COMPACTOS, CARGA Y ACARREO FUERA DE LA OBRA DEL MATERIAL EXCEDENTE NO UTILIZABLE. LA MANO DE OBRA Y EL EQUIPO NECESARIO. P.U.O.T.","M2",{"$f":"D91","v":5830},null,null,0]
["VI.6","CONSTRUCCION Y FORMACION DE TERRAPLENES EN LA CAPA SUBRASANTE UTILIZANDO MATERIALES COMPACTABLES PROCEDENTES DE BANCO DE MATERIALES. INCLUYE: CARGA, ACARREO, REGALÍAS, TENDIDO, INCORPORACION DE HUMEDAD, ACAMELLONADO EN ALAS, AFINE Y COMPACTACION AL 100% DE SU P.V.S.M. DE LA PRUEBA PROCTOR, LA MANO DE OBRA, HERRAMIENTA Y EQUIPO NECESARIO.","M3",{"$f":"D91*0.3","v":1749},null,null,0]
["VII","PAVIMENTACIÓN"]
["VII.1","TRAZO Y NIVELACION PARA PAVIMENTACION. AL AMPARO DE ESTE CONCEPTO EL CONTRATISTA DE ACUERDO A LOS PLANOS DE PROYECTO QUE LE SEAN SUMINISTRADOS, HARA EL TRAZO Y NIVELACION CON EQUIPO DE TOPOGRAFIA DE LOS EJES, LIMITES Y DETALLES CONSTRUCTIVOS DE LOS TRABAJOS. DEBERA COLOCAR REFERENCIAS FIJAS, FUERA DE LAS AREAS DE LOS TRABAJOS PARA ASEGURAR LOS ALINEAMIENTOS Y NIVELES. INCLUYE: LOS MATERIALES, MANO DE OBRA, HERRAMIENTA Y EQUIPO NECESARIO.","M2",{"$f":"D91","v":5830},null,null,{"$f":"ROUND(E98*D98,2)","v":0}]
["VII.2","CONSTRUCCION  DE  BASE  HIDRAULICA  CON  MATERIAL PETREO A TAMAÑO MAXIMO DE 1 1/2\", TOTALMENTE TRITURADO PROVENIENTE DE BANCO. INCLUYE: ACARREOS, INCORPORACION DE HUMEDAD, HOMOGENIZACION, TENDIDO, AFINE Y COMPACTACION AL 100% DE SU PVSM, ESPESOR DE 20 CM. COMPACTOS, LIMPIEZA PREVIA DEL AREA, MANO DE OBRA, MATERIALES, HERRAMIENTA, EQUIPO NECESARIO.","M2",{"$f":"D98","v":5830},null,null,{"$f":"ROUND(E99*D99,2)","v":0}]
["VII.3","RIEGO DE IMPREGNACION CON ASFALTO FM-1 Y/O FR-3 REBAJADO AL 8% EN VOLUMEN CON DIESEL, EN PROPORCIÓN DE 1.5 LTS/M² (NO SE ACEPTARA EL USO DE EMULSIONES). INCLUYE: BARRIDO Y LIMPIEZA PREVIA DE LA SUPERFICIE (RETIRO FUERA DE LA OBRA DE LOS MATERIALES PRODUCTO DE LA MISMA), CARGA, CALENTADO, FLETE, ACARREOS Y APLICACIÓN DEL ASFALTO, EN CASO DE SER NECESARIO SE REALIZARA UN ARENEO EN LAS ZONAS DONDE NO PENETRE LA IMPREGNACIÓN, EN UN TIEMPO NO MENOR DE 24 HRS., DESPUÉS DEL RIEGO, LOS MATERIALES, MANO DE OBRA, HERRAMIENTA, EQUIPO NECESARIO. (INCLUYE EL COSTO DEL ASFALTO). P.U.O.T.\nNOTA: AL EFECTUAR ESTE CONCEPTO, DEBERA CUIDARSE NO MANCHAR LAS GUARNICIONES Y BANQUETAS, EN CUYO CASO SE TENDRAN QUE LIMPIAR SEGUN INDICACIONES DE LA SUPERVISION DE OBRA.","M2",{"$f":"D98","v":5830},null,null,0]
["VII.4","RIEGO DE LIGA PARA CARPETA CON ASFALTO FR-3 EN PROPORCION DE 0.5 LTS/M². INCLUYE: BARRIDO, LIMPIEZA Y RETIRO FUERA DE LA OBRA DE LOS MATERIALES PRODUCTO DE LA LIMPIEZA HASTA EL LUGAR INDICADO, CARGA, CALENTADO, ACARREOS, APLICACION, DEL ASFALTO, MANO DE OBRA, HERRAMIENTA, EQUIPO. (INCLUYE EL COSTO DEL ASFALTO). P.U.O.T.\n(NOTA: AL EFECTUAR ESTE CONCEPTO, DEBERA CUIDARSE NO MANCHAR LAS GUARNICIONES Y BANQUETAS, EN CUYO CASO SE TENDRAN QUE LIMPIAR SEGUN INDICACIONES DE LA SUPERVISION DE OBRA.","M2",{"$f":"D98","v":5830},null,null,0]
["VII.5","PAVIMENTACION CON CARPETA ASFALTICA DE 6 CM DE ESPESOR COMPACTOS, EN CALIENTE, ELABORADA EN PLANTA CON MATERIAL PETREO Y CEMENTO ASFALTICO GRADO PG-70H-16 EN PROPORCION DE 125-130 KG/M3. INCLUYE: MEZCLA HOMOGENIZADA, TENDIDO, AFINE Y COMPACTADO AL 95%, ACARREOS, MATERIALES, MANO DE OBRA, HERRAMIENTA Y EQUIPO NECESARIO.\n(NOTA: AL EFECTUAR ESTE CONCEPTO, DEBERA CUIDARSE NO MANCHAR LAS GUARNICIONES Y BANQUETAS, EN CUYO CASO SE TENDRAN QUE LIMPIAR SEGUN INDICACIONES DE LA SUPERVISION DE OBRA.","M2",{"$f":"D98-D103","v":3493.8939999999998},null,null,0]
["VII.6","PAVIMENTACION DE 20 CM DE ESPESOR CON CONCRETO HIDRAULICO PREMEZCLADO MR=45 KG/CM2  DE FRAGUADO A 28 DÍAS, AUTOCURABLE HIDRATIUM O SIMILAR, T.M.A. DE 1 1/2\". REV. DE 8 (± 2.0 CM.), MUESTREO EN OBRA, CEMENTO TIPO CPC40. SEGÚN NORMA NMX-C-414, AGREGADO GRUESO TRITURADO Y ARENA DE RIO. ELABORADO Y DOSIFICADO POR PESO EN PLANTA, EXTENDIDO EN LOSAS PARA PAVIMENTACIÓN CON ESPESOR DE 20 CM, TENDIDO Y NIVELADO CON PAVIMENTADORA DE CONCRETO (QUE EN GENERAL CUMPLA CON LO ESTABLECIDO EN LA CLAUSULA E EQUIPO, DE LA NORMA N.CTR.CAR.1.04.009/06, LIBRO CTR CONSTRUCCION, TEMA CAR CARRETERAS, PARTE 1 ACTIVIDADES DE OBRA, TITULO 04 PAVIMENTOS, CAPITULO 009 CARPETAS DE CONCRETO HIDRAULICO, DE LA NORMATIVA PARA LA INFRAESTRUCTURA DEL TRANSPORTE DE LA SECRETARÍA DE COMUNICACIONES Y TRANSPORTES), RODILLOS VIBRATORIOS, SEGUN SEA EL CASO, Y VIBRADO, AVIONADO CON CHECK ROD Y BULL FLOAT PARA UNA CORRECTA PLANICIDAD ACABADO CON PEINE METALICO DE CERDAS METALICAS ESPACIADOS @ 3/4\" PARA DAR TEXTURA EN ACABADO RAYADO TRANSVERSAL, COLADO POR FRANJAS CON UNA RELACIÓN LARGO ANCHO NO MAYOR DE 1.25; PLASTICO CAL. 600 MICRAS DESPUES DEL ACABADO, PARA REFORZAR CURADO CORRECTO DE LAS LOSAS. INCLUYE TRAZO, NIVELACIÓN, SEÑALAMIENTO, BARRIDO Y PREPARACIÓN DE LA SUPERFICIE, CIMBRADO Y DESCIMBRADO, VIBRADO, ELABORACIÓN, MEZCLADO Y ACARREO DEL CONCRETO HASTA EL LUGAR DE LA OBRA CON UN MÍNIMO DE CAMIONES REVOLVEDORES, PARA MANTENER UNA FRECUENCIA MINIMA DE 15 MINUTOS ENTRE UNIDADES DE ACUERDO AL CICLO REQUERIDO (PARA EVITAR LA FORMACIÓN DE JUNTAS FRÍAS DEL CONCRETO), PASA JUNTAS DE VARILLA LISA DE 1\" GRADO 60, DE 46 CM DE LARGO @ 30 CM, EN FORMA TRANSVERSAL Y COLOCADAS A CADA 4.50 M, (CON UN  EXTREMO ENGRASADO, FUNDA O PINTURA ANTIADHERENTE); CON CANASTILLA METÁLICA, AHOGADAS EN EL CONCRETO EN EL ESPESOR MEDIO; LA JUNTA LONGITUDINAL SERÁ A BASE DE AMARRES CON VARILLA CORRUGADA DEL No. 4 FY= 4,200 KG/CM2 DE 50 CM DE LARGO @ 35 CM CORTE DE JUNTAS TRANSVERSALES CON CORTADORA DE DISCO DE DIAMANTE A UNA PROFUNDIDAD DE 1/3 DEL PERALTE DE LA LOSA, MODULACIÓN DE TABLEROS SEGUN PROYECTO, PARA PREVENIR AGRIETAMIENTOS POR TEMPERATURA,  LIMPIEZA CON AIRE A PRESIÓN, Y  RELLENO EN JUNTA CONSTRUCTIVA CON CINTILLA DE POLIETILENO DE 3/8\" (BACKER ROD) , Y SELLADOR AUTONIVELANTE A BASE DE  POLIURETANO-ASFALTO TIPO SONOMERIC 1 Ó SIMILAR. INCLUYE: MATERIALES, MANO DE OBRA, HERRAMIENTA Y EQUIPO NECESARIO, CAPACIDAD INSTALADA PARA PRODUCIR Y SUMINISTRAR CONCRETO PREMEZCLADO CONFORME A PROGRAMA DE OBRA. (COLADOS NOCTURNOS).\nNOTA: EL LICITANTE DEBERA DE CONSIDERAR LAS PRUEBAS DE LABORATORIO RESPECTIVAS, EFECTUADAS POR UN LABORATORIO EXTERNO AL MISMO Y PRESENTARSE AL MOMENTO DE REALIZAR EL TRAMITE PARA EL PAGO DE ESTIMACIONES), INCLUYE: LIMPIEZA GENERAL (FINA Y GRUESA). VER ESPECIFICACIONES PARTICULARES Y APEGARSE A LAS NORMAS DE LA SCT. VIGENTES.","M2",2336.1060000000002,null,null,0]
["VII.7","LIMPIEZA DE OBRA TERMINADA. INCLUYE: ACOPIO, CARGA, ACARREO DE MATERIALES Y ESCOMBRO PRODUCTO DE LOS TRABAJOS EJECUTADOS FUERA DE LA OBRA, HASTA EL SITIO AUTORIZADO, SEGUN LO INDIQUE LA SUPERVISION, LA MANO DE OBRA, HERRAMIENTA Y EQUIPO NECESARIO.","M2",{"$f":"D98","v":5830},null,null,0]
["VIII","BANQUETAS"]
["VIII.1","CONSTRUCCION DE BANQUETAS DE 8 CM DE ESPESOR ARMADA CON MALLA-LACK 6x6-10/10. EN ZONA PEATONAL, ACABADO LAVADO, EN LOSAS DE SECCION VARIABLE, JUNTAS FRIAS. EL CONCRETO SERA F´c=150 KG/CM2. T.M.A. 3/4\". REV. DE 8 A 10 CM PREMEZCLADO ELABORADO EN PLANTA, INCLUYE: SUMINISTRO, COLADO, EXTENDIDO, VIBRADO Y ACARREOS DEL CONCRETO, SUMINISTRO Y APLICACIÓN DE CURACRETO EN COLOR BLANCO MARCA PASA O SIKA, CON EL EQUIPO ADECUADO, Y EN LA PROPORCION INDICADA POR EL FABRICANTE, CIMBRA EN FRONTERAS, NIVELACION, AFINE, COMPACTACION AL 95 % EN UN ESPESOR DE 15 CM Y  PREPARACION DE LA SUPERFICIE DEL TERRENO, ACARREOS DE LOS MATERIALES DENTRO DE LA OBRA, LIMPIEZA GENERAL ANTES Y UNA VEZ CONCLUIDOS LOS TRABAJOS, CARGA Y   ACARREOS DE LOS MATERIALES NO UTILIZABLES HASTA EL LUGAR INDICADO POR SUPERVISION, TRAZO Y NIVELACION, MATERIALES, MANO DE OBRA,  HERRAMIENTA Y EQUIPO NECESARIO. P.U.O.T.","M2",753,null,null,{"$f":"ROUND(E106*D106,2)","v":0}]
["VIII.2","FABRICACION DE RAMPAS PARA EL ACCESO DE PERSONAS CON CAPACIDADES DIFERENTES, DE CONCRETO DE 8 CM DE ESPESOR, Y CON UNA PENDIENTE MAXIMA DEL 8%, ACABADO PULIDO Y RAYADO TRANSVERSAL CON PEINE METALICO PARA DAR ACABADO ANTIDERRAPANTE, EN LOSAS DE 1.20 M. DE ANCHO COMO MINIMO. CON BORDES LATERALES DE 10 CM DE ALTURA Y 10 CM DE ANCHO DE CONCRETO, EN EL DESARROLLO LONGITUDINAL DE LA RAMPA, ACABADO EN ARISTAS CON VOLTEADOR. EL CONCRETO SERA F´c=150 KG/CM2. T.M.A. 3/4\". REV. DE 8 A 10 CM. PREMEZCLADO ELABORADO EN PLANTA. INCLUYE: SUMINISTRO, COLADO, EXTENDIDO, VIBRADO Y ACARREOS DEL CONCRETO, SUMINISTRO Y APLICACION DE CURACRETO EN COLOR BLANCO MARCA PASA O SIKA, CON EL EQUIPO ADECUADO, Y EN LA PROPORCION INDICADA POR EL FABRICANTE, CIMBRA EN FRONTERAS, NIVELACION, AFINE, COMPACTACION AL 95 % EN UN ESPESOR DE 15 CM Y PREPARACION DE LA SUPERFICIE DEL TERRENO, ACARREOS DE LOS MATERIALES DENTRO DE LA OBRA, LIMPIEZA GENERAL ANTES Y UNA VEZ CONCLUIDOS LOS TRABAJOS, CARGA Y ACARREOS DE LOS MATERIALES NO UTILIZABLES HASTA EL LUGAR INDICADO POR SUPERVISION, TRAZO Y NIVELACION, MATERIALES, MANO DE OBRA, HERRAMIENTA Y EQUIPO NECESARIO. U.O.T. (NOTA: EL LICITANTE DEBERA DE CONSIDERAR LAS PRUEBAS DE LABORATORIO RESPECTIVAS, EFECTUADAS POR UN LABORATORIO EXTERNO AL MISMO Y PRESENTARSE AL MOMENTO DE REALIZAR EL TRAMITE PARA EL PAGO DE ESTIMACIONES)","M2",528.57000000000005,null,null,0]
["VIII.3","EXCAVACION EN CORTE EN MATERIAL INVESTIGADO EN OBRA, EN AREAS DE BANQUETAS, RAMPAS Y ADYACENTES, PARA DAR NIVELES DE PROYECTO. INCLUYE: TRAZO Y NIVELACION, CARGA, ACARREOS DENTRO Y FUERA DE LA OBRA DEL MATERIAL NO UTILIZABLE HASTA EL LUGAR INDICADO POR SUPERVISION, LA MANO DE OBRA, HERRAMIENTA Y EQUIPO NECESARIO","M3",{"$f":"D106*0.12","v":90.36},null,null,0]
["VIII.4","RELLENO COMPACTADO CON EQUIPO MECANICO CON MATERIAL SELECCIONADO PRODUCTO DE BANCO, LIBRE DE BOLEO MAYOR DE 3\", EN CAPAS DE 20 CM, COMPACTADO AL 90% PROCTOR, PARA DESPLANTE DE BANQUETAS Y GUARNICIONES ADYACENTES, PARA DAR NIVELES DE PROYECTO, SEGUN INDICACIONES DE SUPERVISION. INCLUYE: CRIBADO DEL MATERIAL, ACARREOS DENTRO DE LA OBRA, INCORPORACION DE HUMEDAD, MANO DE OBRA, HERRAMIENTA Y EQUIPO NECESARIO. ","M3",{"$f":"D106*0.1","v":75.3},null,null,0]
["VIII.5","RELLENO COMPACTADO CON EQUIPO MECANICO CON MATERIAL SELECCIONADO PRODUCTO DE EXCAVACION EN CORTE, LIBRE DE BOLEO MAYOR DE 3\", EN CAPAS DE 20 CM, COMPACTADO AL 85% PROCTOR, EN AREAS DE BANQUETAS Y ADYACENTES PARA DAR NIVELES DE PROYECTO, SEGÚN INDICACIONES DE SUPERVISION. INCLUYE: CRIBADO DE MATERIAL, CARGA Y ACARREOS DENTRO DE LA OBRA, INCORPORACION DE HUMEDAD, MANO DE OBRA, HERRAMIENTA Y EQUIPO NECESARIO","M3",{"$f":"D109","v":75.3},null,null,0]
["VIII.6","DEMOLICION DE BANQUETAS Y/O RAMPAS EN COCHERAS DE CONCRETO (CON O SIN ARMADO)  EXISTENTES POR ENCONTRARSE EN MALAS CONDICIONES Y/O NO DAR LOS NIVELES DE PROYECTO . INCLUYE: CORTE CON CORTADORA DE DISCO, LIMPIEZA, CARGA Y RETIRO DE ESCOMBRO FUERA DE LA OBRA HASTA EL LUGAR INDICADO POR LA SUPERVISION, LA MANO DE OBRA, HERRAMIENTA Y EQUIPO NECESARIO.","M2",10,null,null,0]
["IX","SEÑALAMIENTO VERTICAL Y HORIZONTAL"]
["IX.1","SUMINISTRO Y APLICACION DE PINTURA EN LA ORILLA DERECHA  CONTINUA DE COLOR BLANCO DE 10 CM DE ANCHO PREVIAMENTE AUTORIZADO POR SUPERVISION CON PINTURA TERMOPLÁSTICA PARA TRAFICO MARCA SEMEX, Y SE LE APLICARA UN REFLEJANTE CON MICROESFERA, Y SU APLICACION SERA SEGUN LO INDICADO EN EL MANUAL DE DISPOSITIVOS PARA EL CONTROL DEL TRANSITO EN CALLES Y CARRETERAS, INCLUYE: LIMPIEZA POR ASPERSION PARA ELIMINAR LA PRESENCIA DE POLVO, GRASA, ACEITE Y CUALQUIER MATERIAL, MATERIALES, MANO DE OBRA, HERRAMIENTA Y EQUIPO NECESARIO. P.U.O.T. ","ML",{"$f":"320.02*2","v":640.04},null,null,0]
["IX.2","SUMINISTRO Y APLICACION DE PINTURA EN LA ORILLA IZQUIERDA Y CENTRO  CONTINUA DE COLOR AMARILLO DE 10 CM DE ANCHO PREVIAMENTE AUTORIZADO POR SUPERVISION CON PINTURA TERMOPLÁSTICA PARA TRAFICO MARCA SEMEX, Y SE LE APLICARA UN REFLEJANTE CON MICROESFERA, Y SU APLICACION SERA SEGUN LO INDICADO EN EL MANUAL DE DISPOSITIVOS PARA EL CONTROL DEL TRANSITO EN CALLES Y CARRETERAS, INCLUYE: LIMPIEZA POR ASPERSION PARA ELIMINAR LA PRESENCIA DE POLVO, GRASA, ACEITE Y CUALQUIER MATERIAL, MATERIALES, MANO DE OBRA, HERRAMIENTA Y EQUIPO NECESARIO. P.U.O.T. ","ML",{"$f":"D113*2","v":1280.08},null,null,0]
["IX.3","SUMINISTRO Y APLICACION DE PINTURA EN LA ORILLA DERECHA E IZQUIERDA  DISCONTINUA DE COLOR BLANCO DE 10 CM DE ANCHO PREVIAMENTE AUTORIZADO POR SUPERVISION CON PINTURA TERMOPLÁSTICA PARA TRAFICO MARCA SEMEX, Y SE LE APLICARA UN REFLEJANTE CON MICROESFERA, Y SU APLICACION SERA SEGUN LO INDICADO EN EL MANUAL DE DISPOSITIVOS PARA EL CONTROL DEL TRANSITO EN CALLES Y CARRETERAS, INCLUYE: LIMPIEZA POR ASPERSION PARA ELIMINAR LA PRESENCIA DE POLVO, GRASA, ACEITE Y CUALQUIER MATERIAL, MATERIALES, MANO DE OBRA, HERRAMIENTA Y EQUIPO NECESARIO. P.U.O.T. ","ML",{"$f":"320.02*2","v":640.04},null,null,0]
["IX.4","MARCAS M-7.1 RAYAS PARA CRUCE DE PEATONES EN VÍAS PRIMARIAS, CON PINTURA TERMOPLÁSTICA COLOR AMARILLO RETRORREFLEJANTE DE 40 CM DE ANCHO, POR UNIDAD DE OBRA TERMINADA.","ML",90.09,null,null,0]
["IX.5","MARCAS M-6 RAYA DE ALTO, CON PINTURA TERMOPLÁSTICA COLOR BLANCO RETRORREFLEJANTE DE 60 CM DE ANCHO, POR UNIDAD DE OBRA TERMINADA.","ML",{"$f":"8.53*4","v":34.119999999999997},null,null,0]
["IX.6","SUMINISTRO Y APLICACION DE PINTURA PARA FLECHAS, LETRAS, NUMEROS DE COLOR BLANCO PREVIAMENTE AUTORIZADO POR SUPERVISION CON PINTURA TERMOPLÁSTICA PARA TRAFICO MARCA SEMEX, Y SE LE APLICARA UN REFLEJANTE CON MICROESFERA, Y SU APLICACION SERA SEGUN LO INDICADO EN EL MANUAL DE DISPOSITIVOS PARA EL CONTROL DEL TRANSITO EN CALLES Y CARRETERAS, INCLUYE: LIMPIEZA POR ASPERSION PARA ELIMINAR LA PRESENCIA DE POLVO, GRASA, ACEITE Y CUALQUIER MATERIAL, MATERIALES, MANO DE OBRA, HERRAMIENTA Y EQUIPO NECESARIO. P.U.O.T. ","PZA",16,null,null,{"$f":"ROUND(E118*D118,2)","v":0}]
["IX.7","SEÑAL PREVENTIVA SP-26 VADO, CON UN TABLERO DE 71 CM X 71 CM, EN UN POSTE, CON PELÍCULA REFLEJANTE TIPO A, POR UNIDAD DE OBRA TERMINADA.","PZA",2,null,null,0]
["IX.8","SEÑAL PREVENTIVA SP-41 REDUCTOR DE VELOCIDAD, CON UN TABLERO DE 71 CM X 71 CM, EN UN POSTE, CON PELÍCULA REFLEJANTE TIPO A, POR UNIDAD DE OBRA TERMINADA.","PZA",2,null,null,0]
["IX.9","SEÑAL RESTRICTIVA SR-9 VELOCIDAD, CON UN TABLERO DE 71 CM X 71 CM, EN UN POSTE, CON PELÍCULA REFLEJANTE TIPO A, POR UNIDAD DE OBRA TERMINADA.","PZA",1,null,null,0]
["IX.10","SEÑAL RESTRICTIVA SR-6 ALTO, CON UN TABLERO DE 30 CM POR LADO, EN UN POSTE, CON PELÍCULA REFLEJANTE TIPO A, POR UNIDAD DE OBRA TERMINADA.","PZA",5,null,null,0]
["IX.11","REDUCTOR DE VELOCIDAD A BASE DE CARPETA ASFÁLTICA EN CALIENTE, CONFORME A PROYECTO, INCLUYE CONCRETO ASFÁLTICO Y FRANJAS DIAGONALES DE COLOR BLANCO Y AMARILLO RETRORREFLEJANTE, POR UNIDAD DE OBRA TERMINADA.","M",53.13,null,null,0]
["X"," ALUMBRADO PUBLICO"]
["X.1","SUMINISTRO Y COLOCACION DE BASE PREFABRICADA TRAPEZOIDAL DE CONCRETO DE 40x40 EN CORONA Y 80x80 EN BASE, CON ALTURA DE 120 Cm.  FABRICADO EN CONCRETO FC=200 KG/CM2, ACERO DE REFUERZO CON VARILLA CORRUGADA DE 3/8\" Y 1/2\" SEGUN SE INDICA,  4 ANCLAS DE VARILLA ROSCADA DE 1\" DE DIAMETRO POR 55CMS DE LARGO, TUBO PVC CONDUIT DE 11/2\" DE DIAMETRO, CURVAS Y CONECTORES DE PVC EN REGISTRO Y BASE SEGUN PLANO, EXCAVACION EN TERRENO TIPO III MATERIAL C Y RELLENO COMPACTADO AL85% MINIMO,  CON MATERIAL SELECCIONADO PRODUCTO DE EXCAVACION, LIBRE DE BOLEO DE 3\", CARGO DIRECTO POR EL  COSTO DE LA MANO DE OBRA Y LOS METERIALES REQUERIDOS, FLETE A OBRA, ACARREOS, NIVELADO, PLOMEADO, MANIOBRAS, GRUA, TRAZO, CORTE, CIMBRA,  HABILITADO Y ARMADO, COLADO Y DESCIMBRADO, GUIA DE ALAMBRE CAL.14, FIJACION, DESENRAICE, CORTE Y/O PODAD DE ARBOLES, LIMPIEZA Y RETIRO DE SOBRANTES FUERA DE LA OBRA, EQUIPO DE SEGURIDAD,  INSTALACIONES ESPECIFICAS, DESPERDICIOS Y DEMAS CARGOS DERIVADOS DEL USO DEL EQUIPO Y HERRAMIENTA.","PZA",9,null,null,0]
["X.2","SUMINISTRO Y COLOCACIÓN DE POSTE DE Fe. (CAL. 11) OCTAGONAL CÓNICO GALVANIZADO DE 9 METROS DE ALTURA. INCLUYE: MONTAJE DE POSTE, COLOCACION DE  TORNILLERIA DE ENSAMBLE GALVANIZADA,  PINTURA EN POSTES DE ACUERDO A LO QUE LA SUPERVSION DISPONGA, HERRAMIENTA, MANO DE OBRA, EQUIPO, LIMPIEZA Y TODO LO NECESARIO PARA LA CORRECTA EJECUCIÓN DE LOS TRABAJOS","PZA",9,null,null,0]
["X.3","SUMINISTRO DE LAMPARA SOLAR DE 100W CORRIENTE DE LINEA DE 220 VOLTS, INCLUYE: INSTALACION, SUMINISTRO, MANO DE OBRA, EQUIPO Y HERRAMIENTA. Y TODO LO NECESARIO PARA SU CORRECTA EJECUCIÓN.","PZA",18,null,null,0]
[]
[null,null,null,null,null,"SUBTOTAL ",{"$f":"SUM(G27:G128)","v":0}]
[null,null,null,null,null,"IVA 16%",{"$f":"G129*0.16","v":0}]
[null,null,null,null,null,"TOTAL",{"$f":"G130+G129","v":0}]